Workbook

Sheet simul_Type1_6Bls
A1: Les cellule blanches sont modifiables - Les cellules vertes donnent accés à des listes de choix - Un triangle rouge supérieur droit indique un commentaire (glissez sur la cellule) | BB1: Parmètres de la simulation graphique (séries de fonctions)
A2: coeff partiel gM0 | B2: 1 | H2: (KN) | AZ2: contour | BA2: 0 | BB2: 0 | BC2: =IF(nbbls>=1,longzoneatt-elongit1+5,"") -> 182.2 | BD2: =IF(nbbls>=1,IF(nbrangees>=1,etransv2+ecart2,""),"") -> 65.2 | BE2: axe1
A3: coeff partiel gM2 | B3: 1.25 | D3: coeff x d0 | E3: coeff | G3: NEd | H3: 70.4 | AZ3: contour | BA3: 0 | BB3: =largeurplat -> 99.2 | BC3: =IF(nbbls>=1,longzoneatt-elongit1-5,"") -> 172.2 | BD3: =IF(nbbls>=1,IF(nbrangees>=1,etransv2+ecart2,""),"") -> 65.2 | BE3: axe1
A4: boulons par rangée | B4: 3 | C4: e1 (mm) | D4: 20 | E4: 1.538461538 | G4: Cisaillement de bloc NEd/Veff < 100% - Anv = 364mm² ; Ant = 73mm² | AZ4: contour | BA4: =largeurplat+2*elongit1+pasbl1*(nbbls-1) -> 197.2 | BB4: =largeurplat -> 99.2 | BC4: =IF(nbbls>=1,longzoneatt-elongit1,"") -> 177.2 | BD4: =IF(nbbls>=1,IF(nbrangees>=1,etransv2+ecart2+5,""),"") -> 70.2 | BE4: axe2
A5: nombre de rangées | B5: 2 | C5: e2 (mm) | D5: 34 | E5: 2.615384615 | G5: V eff,1,Rd centré | H5: 70.35294203 | I5: 1.000668884 | AZ5: contour | BA5: =longzoneatt -> 197.2 | BB5: 0 | BC5: =IF(nbbls>=1,longzoneatt-elongit1,"") -> 177.2 | BD5: =IF(nbbls>=1,IF(nbrangees>=1,etransv2 + ecart2-5,""),"") -> 60.2 | BE5: axe2
A6: f boulons (d en mm) | B6: 12 | C6: p1 (mm) | D6: 29 | E6: 2.230769231 | G6: V eff,2,Rd excentré | H6: 59.86974203 | I6: 1.175886142 | AZ6: contour | BA6: 0 | BB6: 0 | BC6: =IF(nbbls>=1,IF(nbrangees>=2,longzoneatt-elongit1+5,""),"") -> 182.2 | BD6: =IF(nbbls>=1,IF(nbrangees>=2,etransv2,""),"") -> 34 | BE6: axe3
A7: f perçages (d0 en mm) | B7: 13 | C7: p2 (mm) | D7: 31.2 | E7: 2.4 | G7: Résistance du plat en section nette NEd / Nt,Rd < 100% | BC7: =IF(nbbls>=1,IF(nbrangees>=2,longzoneatt-elongit1-5,""),"") -> 172.2 | BD7: =IF(nbbls>=1,IF(nbrangees>=2,etransv2,""),"") -> 34 | BE7: axe3
A8: Section filetée (mm²) | B8: 84.3 | C8: ep. plat (mm) | D8: 4 | G8: Abrute= 397mm² ; Anet = 293mm² ; Nurd = 75,9 KN ; Nplrd = 93,2 KN | BC8: =IF(nbbls>=1,IF(nbrangees>=2,longzoneatt-elongit1,""),"") -> 177.2 | BD8: =IF(nbbls>=1,IF(nbrangees>=2,etransv2+5,""),"") -> 39 | BE8: axe4
A9: Classe des boulons | B9: 6.8 | C9: Plan de joint | D9: 1 | E9: Simple cisaillement | G9: Nt,Rd = Min.( Nu,Rd ; Npl,Rd) | H9: 75.89376 | I9: 0.9276124941 | BC9: =IF(nbbls>=1,IF(nbrangees>=2,longzoneatt-elongit1,""),"") -> 177.2 | BD9: =IF(nbbls>=1,IF(nbrangees>=2,etransv2 -5,""),"") -> 29 | BE9: axe4
A10: fub ou Rm | B10: 600 | C10: Acier | D10: Mpa | E10: ep < 40mm | G10: Cisaillement des boulons NEd par plan de joint / Fv,Rd < 100% | M10: Largeur du plat (mm) | N10: 99.2 | BC10: =IF(nbbls>=2,IF(nbrangees>=2,longzoneatt-elongit1-pasbl1+5,""),"") -> 153.2 | BD10: =IF(nbbls>=2,IF(nbrangees>=2,etransv2,""),"") -> 34 | BE10: axe5
C11: fy | D11: 235 | E11: S355K2+N | G11: Fv,Rd = av fub A / gM2 | H11: 121.392 | I11: 0.57993937 | M11: Longueur du plat (mm) | N11: 296.4 | BC11: =IF(nbbls>=2,IF(nbrangees>=2,longzoneatt-elongit1-pasbl1-5,""),"") -> 143.2 | BD11: =IF(nbbls>=2,IF(nbrangees>=2,etransv2,""),"") -> 34 | BE11: axe5
C12: fu | D12: 360 | E12: Galvanisation NON conseillée | G12: Pression diamétrale: NEd par boulon / Fb,Rd < 100% | I12: Boulons de rive | M12: Longueur libre du plat L0 (mm) | N12: 123.9 | BC12: =IF(nbbls>=2,IF(nbrangees>=2,longzoneatt-elongit1-pasbl1,""),"") -> 148.2 | BD12: =IF(nbbls>=2,IF(nbrangees>=2,etransv2+5,""),"") -> 39 | BE12: axe6
G13: Fb,Rd = k1 ab fu dt / gM2 | H13: 106.3384615 | I13: 0.662037037 | M13: Alongement jusqu'à NEd/Abrute = fy (mm) | N13: 0.13865 | BC13: =IF(nbbls>=2,IF(nbrangees>=2,longzoneatt-elongit1-pasbl1,""),"") -> 148.2 | BD13: =IF(nbbls>=2,IF(nbrangees>=2,etransv2-5,""),"") -> 29 | BE13: axe6
G14: av = 0,5 ; k1 = 2,5 ; ab = 0,51 ; ad = 0,51 | M14: NEd (KN) pour fy | N14: 93.248 | BC14: =IF(nbbls>=2,IF(nbrangees>=1,longzoneatt-elongit1-pasbl1,""),"") -> 148.2 | BD14: =IF(nbbls>=2,IF(nbrangees>=1,etransv2 + ecart2+5,""),"") -> 70.2 | BE14: axe7
BC15: =IF(nbbls>=2,IF(nbrangees>=1,longzoneatt-elongit1-pasbl1,""),"") -> 148.2 | BD15: =IF(nbbls>=2,IF(nbrangees>=1,etransv2 + ecart2-5,""),"") -> 60.2 | BE15: axe7
BC16: =IF(nbbls>=2,IF(nbrangees>=1,longzoneatt-elongit1-pasbl1+5,""),"") -> 153.2 | BD16: =IF(nbbls>=2,IF(nbrangees>=1,etransv2+ecart2,""),"") -> 65.2 | BE16: axe8
BC17: =IF(nbbls>=2,IF(nbrangees>=1,longzoneatt-elongit1-pasbl1-5,""),"") -> 143.2 | BD17: =IF(nbbls>=2,IF(nbrangees>=1,etransv2 + ecart2,""),"") -> 65.2 | BE17: axe8
BC18: =IF(nbbls>=3,IF(nbrangees>=1,longzoneatt-elongit1-2*pasbl1,""),"") -> 119.2 | BD18: =IF(nbbls>=3,IF(nbrangees>=1,etransv2+ecart2+5,""),"") -> 70.2 | BE18: axe9
BC19: =IF(nbbls>=3,IF(nbrangees>=1,longzoneatt-elongit1-2*pasbl1,""),"") -> 119.2 | BD19: =IF(nbbls>=3,IF(nbrangees>=1,etransv2 + ecart2-5,""),"") -> 60.2 | BE19: axe9
BC20: =IF(nbbls>=3,IF(nbrangees>=1,longzoneatt-elongit1-2*pasbl1+5,""),"") -> 124.2 | BD20: =IF(nbbls>=3,IF(nbrangees>=1,etransv2+ecart2,""),"") -> 65.2 | BE20: axe10
BC21: =IF(nbbls>=3,IF(nbrangees>=1,longzoneatt-elongit1-2*pasbl1-5,""),"") -> 114.2 | BD21: =IF(nbbls>=3,IF(nbrangees>=1,etransv2 + ecart2,""),"") -> 65.2 | BE21: axe10
BC22: =IF(nbbls>=3,IF(nbrangees>=2,longzoneatt-elongit1-2*pasbl1+5,""),"") -> 124.2 | BD22: =IF(nbbls>=3,IF(nbrangees>=2,etransv2,""),"") -> 34 | BE22: axe11
BC23: =IF(nbbls>=3,IF(nbrangees>=2,longzoneatt-elongit1-2*pasbl1-5,""),"") -> 114.2 | BD23: =IF(nbbls>=3,IF(nbrangees>=2,etransv2,""),"") -> 34 | BE23: axe11
BC24: =IF(nbbls>=3,IF(nbrangees>=2,longzoneatt-elongit1-2*pasbl1,""),"") -> 119.2 | BD24: =IF(nbbls>=3,IF(nbrangees>=2,etransv2+5,""),"") -> 39 | BE24: axe12
BC25: =IF(nbbls>=3,IF(nbrangees>=2,longzoneatt-elongit1-2*pasbl1,""),"") -> 119.2 | BD25: =IF(nbbls>=3,IF(nbrangees>=2,etransv2-5,""),"") -> 29 | BE25: axe12

Sheet Essai_Type1_6Bls
A1: Déplacement mm | B1: Force KN
A2: 0 | B2: 0
A3: 0 | B3: 0.06050055
A4: 0 | B4: 0.30250275
A5: 0.0061 | B5: 0.3630033
A6: 0.0061 | B6: 0.42350385
A7: 0.0061 | B7: 0.4840044
A8: 0.0061 | B8: 0.7260066
A9: 0.0122 | B9: 0.3630033
A10: 0.0122 | B10: 0.78650715
A11: 0.0122 | B11: 0.90750825
A12: 0.0122 | B12: 0.90750825
A13: 0.0183 | B13: 1.02850935
A14: 0.0183 | B14: 1.14951045
A15: 0.0183 | B15: 1.210011
A16: 0.0183 | B16: 1.14951045
A17: 0.0244 | B17: 1.39151265
A18: 0.0244 | B18: 1.51251375
A19: 0.0305 | B19: 1.87551705
A20: 0.0427 | B20: 2.2990209
A21: 0.0488 | B21: 2.35952145
A22: 0.0549 | B22: 2.11751925
A23: 0.0793 | B23: 2.5410231
A24: 0.0915 | B24: 2.84352585
A25: 0.0976 | B25: 3.08552805
A26: 0.1037 | B26: 3.2670297
A27: 0.1098 | B27: 3.69053355
A28: 0.1159 | B28: 3.5090319
A29: 0.1342 | B29: 3.9930363
A30: 0.1403 | B30: 3.9930363
A31: 0.1586 | B31: 4.17453795
A32: 0.1647 | B32: 4.2350385
A33: 0.1708 | B33: 4.7190429
A34: 0.183 | B34: 4.5980418
A35: 0.1952 | B35: 5.0820462
A36: 0.2013 | B36: 5.0820462
A37: 0.2074 | B37: 5.26354785
A38: 0.2379 | B38: 5.38454895
A39: 0.2379 | B39: 5.50555005
A40: 0.244 | B40: 5.8080528
A41: 0.2562 | B41: 6.11055555
A42: 0.2623 | B42: 6.2920572
A43: 0.2745 | B43: 6.5340594
A44: 0.2806 | B44: 6.5340594
A45: 0.2928 | B45: 6.83656215
A46: 0.2989 | B46: 7.1390649
A47: 0.305 | B47: 7.44156765
A48: 0.3172 | B48: 7.56256875
A49: 0.3233 | B49: 7.7440704
A50: 0.3294 | B50: 8.04657315
A51: 0.3416 | B51: 8.470077
A52: 0.3477 | B52: 8.40957645
A53: 0.3599 | B53: 8.65157865
A54: 0.366 | B54: 8.8330803
A55: 0.3782 | B55: 9.13558305
A56: 0.3843 | B56: 9.3170847
A57: 0.3965 | B57: 9.3170847
A58: 0.4026 | B58: 9.680088
A59: 0.4148 | B59: 9.98259075
A60: 0.4209 | B60: 10.1640924
A61: 0.4331 | B61: 10.2850935
A62: 0.4453 | B62: 10.4060946
A63: 0.4514 | B63: 10.7690979
A64: 0.4575 | B64: 11.0111001
A65: 0.4697 | B65: 11.07160065
A66: 0.4758 | B66: 11.31360285
A67: 0.488 | B67: 11.1321012
A68: 0.5002 | B68: 11.6161056
A69: 0.5063 | B69: 11.8581078
A70: 0.5124 | B70: 12.03960945
A71: 0.5185 | B71: 12.2211111
A72: 0.5307 | B72: 12.4631133
A73: 0.5368 | B73: 12.7051155
A74: 0.549 | B74: 12.76561605
A75: 0.5551 | B75: 13.12861935
A76: 0.5612 | B76: 13.24962045
A77: 0.5734 | B77: 13.37062155
A78: 0.5795 | B78: 13.49162265
A79: 0.5917 | B79: 13.6731243
A80: 0.5978 | B80: 13.85462595
A81: 0.61 | B81: 14.21762925
A82: 0.6161 | B82: 14.3991309
A83: 0.6283 | B83: 14.6411331
A84: 0.6344 | B84: 14.6411331
A85: 0.6405 | B85: 15.0041364
A86: 0.6527 | B86: 15.18563805
A87: 0.6588 | B87: 15.30663915
A88: 0.6649 | B88: 15.66964245
A89: 0.671 | B89: 15.54864135
A90: 0.6832 | B90: 15.79064355
A91: 0.6893 | B91: 16.0931463
A92: 0.6954 | B92: 16.3351485
A93: 0.7015 | B93: 16.39564905
A94: 0.7076 | B94: 16.8191529
A95: 0.7198 | B95: 17.00065455
A96: 0.7259 | B96: 17.0611551
A97: 0.732 | B97: 17.36365785
A98: 0.7442 | B98: 17.60566005
A99: 0.7503 | B99: 17.72666115
A100: 0.7564 | B100: 17.96866335
A101: 0.7625 | B101: 18.21066555
A102: 0.7686 | B102: 18.33166665
A103: 0.7808 | B103: 18.45266775
A104: 0.7869 | B104: 18.57366885
A105: 0.7991 | B105: 18.81567105
A106: 0.8052 | B106: 19.17867435
A107: 0.8113 | B107: 19.2391749
A108: 0.8174 | B108: 19.29967545
A109: 0.8235 | B109: 19.66267875
A110: 0.8296 | B110: 19.9651815
A111: 0.8357 | B111: 20.14668315
A112: 0.8418 | B112: 20.3281848
A113: 0.8479 | B113: 20.26768425
A114: 0.8601 | B114: 20.87268975
A115: 0.8662 | B115: 21.0541914
A116: 0.8723 | B116: 21.23569305
A117: 0.8784 | B117: 21.4171947
A118: 0.8845 | B118: 21.5381958
A119: 0.8906 | B119: 21.6591969
A120: 0.8967 | B120: 21.6591969
A121: 0.9089 | B121: 21.96169965
A122: 0.915 | B122: 22.2642024
A123: 0.9211 | B123: 22.32470295
A124: 0.9272 | B124: 22.7482068
A125: 0.9333 | B125: 22.92970845
A126: 0.9394 | B126: 23.05070955
A127: 0.9455 | B127: 23.1112101
A128: 0.9516 | B128: 23.3532123
A129: 0.9577 | B129: 23.7162156
A130: 0.9638 | B130: 23.8372167
A131: 0.976 | B131: 24.0792189
A132: 0.9821 | B132: 24.20022
A133: 0.9882 | B133: 23.77671615
A134: 1.0126 | B134: 24.13971945
A135: 1.0187 | B135: 24.20022
A136: 1.0248 | B136: 24.50272275
A137: 1.0309 | B137: 24.8052255
A138: 1.037 | B138: 24.9262266
A139: 1.0431 | B139: 25.22872935
A140: 1.0492 | B140: 25.34973045
A141: 1.0553 | B141: 25.410231
A142: 1.0614 | B142: 25.83373485
A143: 1.0675 | B143: 26.0152365
A144: 1.0736 | B144: 26.2572387
A145: 1.0797 | B145: 26.3782398
A146: 1.0858 | B146: 25.59173265
A147: 1.1102 | B147: 26.07573705
A148: 1.1102 | B148: 26.2572387
A149: 1.1163 | B149: 26.55974145
A150: 1.1224 | B150: 26.8622442
A151: 1.1285 | B151: 27.04374585
A152: 1.1346 | B152: 27.16474695
A153: 1.1407 | B153: 27.4672497
A154: 1.1407 | B154: 27.5882508
A155: 1.1468 | B155: 27.830253
A156: 1.159 | B156: 27.9512541
A157: 1.1651 | B157: 28.1932563
A158: 1.1651 | B158: 28.49575905
A159: 1.1712 | B159: 28.5562596
A160: 1.1773 | B160: 28.7982618
A161: 1.1834 | B161: 28.85876235
A162: 1.1895 | B162: 29.040264
A163: 1.2017 | B163: 28.97976345
A164: 1.22 | B164: 29.22176565
A165: 1.22 | B165: 29.34276675
A166: 1.2261 | B166: 29.6452695
A167: 1.2322 | B167: 29.7662706
A168: 1.2383 | B168: 30.1292739
A169: 1.2383 | B169: 30.250275
A170: 1.2444 | B170: 30.3712761
A171: 1.2505 | B171: 30.6132783
A172: 1.2566 | B172: 30.67377885
A173: 1.2627 | B173: 30.79477995
A174: 1.2688 | B174: 30.9762816
A175: 1.2749 | B175: 31.39978545
A176: 1.281 | B176: 30.6132783
A177: 1.2993 | B177: 31.0972827
A178: 1.3054 | B178: 31.0972827
A179: 1.3115 | B179: 31.460286
A180: 1.3176 | B180: 31.76278875
A181: 1.3237 | B181: 31.9442904
A182: 1.3237 | B182: 32.00479095
A183: 1.3298 | B183: 32.24679315
A184: 1.3359 | B184: 32.5492959
A185: 1.342 | B185: 32.48879535
A186: 1.3481 | B186: 32.9122992
A187: 1.3542 | B187: 33.09380085
A188: 1.3603 | B188: 33.1543014
A189: 1.3664 | B189: 33.33580305
A190: 1.3725 | B190: 33.57780525
A191: 1.3786 | B191: 33.7593069
A192: 1.3847 | B192: 33.880308
A193: 1.3908 | B193: 34.06180965
A194: 1.3969 | B194: 34.06180965
A195: 1.403 | B195: 34.06180965
A196: 1.4213 | B196: 34.3643124
A197: 1.4274 | B197: 34.54581405
A198: 1.4274 | B198: 34.78781625
A199: 1.4335 | B199: 34.90881735
A200: 1.4396 | B200: 34.9693179
... 3652 more rows

Sheet raideur_K1
A1: Déplacement | B1: Force
A2: 0 | B2: 0.30250275
A3: 0.0061 | B3: 0.3630033
A4: 0.0061 | B4: 0.42350385
A5: 0.0061 | B5: 0.4840044
A6: 0.0061 | B6: 0.7260066
A7: 0.0122 | B7: 0.3630033
A8: 0.0122 | B8: 0.78650715
A9: 0.0122 | B9: 0.90750825
A10: 0.0122 | B10: 0.90750825
A11: 0.0183 | B11: 1.02850935
A12: 0.0183 | B12: 1.14951045
A13: 0.0183 | B13: 1.210011
A14: 0.0183 | B14: 1.14951045
A15: 0.0244 | B15: 1.39151265
A16: 0.0244 | B16: 1.51251375
A17: 0.0305 | B17: 1.87551705
A18: 0.0427 | B18: 2.2990209
A19: 0.0488 | B19: 2.35952145
A20: 0.0549 | B20: 2.11751925
A21: 0.0793 | B21: 2.5410231
A22: 0.0915 | B22: 2.84352585
A23: 0.0976 | B23: 3.08552805
A24: 0.1037 | B24: 3.2670297
A25: 0.1098 | B25: 3.69053355
A26: 0.1159 | B26: 3.5090319
A27: 0.1342 | B27: 3.9930363
A28: 0.1403 | B28: 3.9930363
A29: 0.1586 | B29: 4.17453795
A30: 0.1647 | B30: 4.2350385
A31: 0.1708 | B31: 4.7190429
A32: 0.183 | B32: 4.5980418
A33: 0.1952 | B33: 5.0820462
A34: 0.2013 | B34: 5.0820462
A35: 0.2074 | B35: 5.26354785
A36: 0.2379 | B36: 5.38454895
A37: 0.2379 | B37: 5.50555005
A38: 0.244 | B38: 5.8080528
A39: 0.2562 | B39: 6.11055555
A40: 0.2623 | B40: 6.2920572
A41: 0.2745 | B41: 6.5340594
A42: 0.2806 | B42: 6.5340594
A43: 0.2928 | B43: 6.83656215
A44: 0.2989 | B44: 7.1390649
A45: 0.305 | B45: 7.44156765
A46: 0.3172 | B46: 7.56256875
A47: 0.3233 | B47: 7.7440704
A48: 0.3294 | B48: 8.04657315
A49: 0.3416 | B49: 8.470077
A50: 0.3477 | B50: 8.40957645
A51: 0.3599 | B51: 8.65157865
A52: 0.366 | B52: 8.8330803
A53: 0.3782 | B53: 9.13558305
A54: 0.3843 | B54: 9.3170847
A55: 0.3965 | B55: 9.3170847
A56: 0.4026 | B56: 9.680088
A57: 0.4148 | B57: 9.98259075
A58: 0.4209 | B58: 10.1640924
A59: 0.4331 | B59: 10.2850935
A60: 0.4453 | B60: 10.4060946
A61: 0.4514 | B61: 10.7690979
A62: 0.4575 | B62: 11.0111001
A63: 0.4697 | B63: 11.07160065
A64: 0.4758 | B64: 11.31360285
A65: 0.488 | B65: 11.1321012
A66: 0.5002 | B66: 11.6161056
A67: 0.5063 | B67: 11.8581078
A68: 0.5124 | B68: 12.03960945
A69: 0.5185 | B69: 12.2211111
A70: 0.5307 | B70: 12.4631133
A71: 0.5368 | B71: 12.7051155
A72: 0.549 | B72: 12.76561605
A73: 0.5551 | B73: 13.12861935
A74: 0.5612 | B74: 13.24962045
A75: 0.5734 | B75: 13.37062155
A76: 0.5795 | B76: 13.49162265
A77: 0.5917 | B77: 13.6731243
A78: 0.5978 | B78: 13.85462595
A79: 0.61 | B79: 14.21762925
A80: 0.6161 | B80: 14.3991309
A81: 0.6283 | B81: 14.6411331
A82: 0.6344 | B82: 14.6411331
A83: 0.6405 | B83: 15.0041364
A84: 0.6527 | B84: 15.18563805
A85: 0.6588 | B85: 15.30663915
A86: 0.6649 | B86: 15.66964245
A87: 0.671 | B87: 15.54864135
A88: 0.6832 | B88: 15.79064355
A89: 0.6893 | B89: 16.0931463
A90: 0.6954 | B90: 16.3351485
A91: 0.7015 | B91: 16.39564905
A92: 0.7076 | B92: 16.8191529
A93: 0.7198 | B93: 17.00065455
A94: 0.7259 | B94: 17.0611551
A95: 0.732 | B95: 17.36365785
A96: 0.7442 | B96: 17.60566005
A97: 0.7503 | B97: 17.72666115
A98: 0.7564 | B98: 17.96866335
A99: 0.7625 | B99: 18.21066555
A100: 0.7686 | B100: 18.33166665
A101: 0.7808 | B101: 18.45266775
A102: 0.7869 | B102: 18.57366885
A103: 0.7991 | B103: 18.81567105
A104: 0.8052 | B104: 19.17867435
A105: 0.8113 | B105: 19.2391749
A106: 0.8174 | B106: 19.29967545
A107: 0.8235 | B107: 19.66267875
A108: 0.8296 | B108: 19.9651815
A109: 0.8357 | B109: 20.14668315
A110: 0.8418 | B110: 20.3281848
A111: 0.8479 | B111: 20.26768425
A112: 0.8601 | B112: 20.87268975
A113: 0.8662 | B113: 21.0541914
A114: 0.8723 | B114: 21.23569305
A115: 0.8784 | B115: 21.4171947
A116: 0.8845 | B116: 21.5381958
A117: 0.8906 | B117: 21.6591969
A118: 0.8967 | B118: 21.6591969
A119: 0.9089 | B119: 21.96169965
A120: 0.915 | B120: 22.2642024
A121: 0.9211 | B121: 22.32470295
A122: 0.9272 | B122: 22.7482068
A123: 0.9333 | B123: 22.92970845
A124: 0.9394 | B124: 23.05070955
A125: 0.9455 | B125: 23.1112101
A126: 0.9516 | B126: 23.3532123
A127: 0.9577 | B127: 23.7162156
A128: 0.9638 | B128: 23.8372167
A129: 0.976 | B129: 24.0792189
A130: 0.9821 | B130: 24.20022
A131: 0.9882 | B131: 23.77671615
A132: 1.0126 | B132: 24.13971945
A133: 1.0187 | B133: 24.20022
A134: 1.0248 | B134: 24.50272275
A135: 1.0309 | B135: 24.8052255
A136: 1.037 | B136: 24.9262266
A137: 1.0431 | B137: 25.22872935
A138: 1.0492 | B138: 25.34973045
A139: 1.0553 | B139: 25.410231
A140: 1.0614 | B140: 25.83373485
A141: 1.0675 | B141: 26.0152365
A142: 1.0736 | B142: 26.2572387
A143: 1.0797 | B143: 26.3782398
A144: 1.0858 | B144: 25.59173265
A145: 1.1102 | B145: 26.07573705
A146: 1.1102 | B146: 26.2572387
A147: 1.1163 | B147: 26.55974145
A148: 1.1224 | B148: 26.8622442
A149: 1.1285 | B149: 27.04374585
A150: 1.1346 | B150: 27.16474695
A151: 1.1407 | B151: 27.4672497
A152: 1.1407 | B152: 27.5882508
A153: 1.1468 | B153: 27.830253
A154: 1.159 | B154: 27.9512541
A155: 1.1651 | B155: 28.1932563
A156: 1.1651 | B156: 28.49575905
A157: 1.1712 | B157: 28.5562596
A158: 1.1773 | B158: 28.7982618
A159: 1.1834 | B159: 28.85876235
A160: 1.1895 | B160: 29.040264
A161: 1.2017 | B161: 28.97976345
A162: 1.22 | B162: 29.22176565
A163: 1.22 | B163: 29.34276675
A164: 1.2261 | B164: 29.6452695
A165: 1.2322 | B165: 29.7662706
A166: 1.2383 | B166: 30.1292739
A167: 1.2383 | B167: 30.250275
A168: 1.2444 | B168: 30.3712761
A169: 1.2505 | B169: 30.6132783
A170: 1.2566 | B170: 30.67377885
A171: 1.2627 | B171: 30.79477995
A172: 1.2688 | B172: 30.9762816
A173: 1.2749 | B173: 31.39978545
A174: 1.281 | B174: 30.6132783
A175: 1.2993 | B175: 31.0972827
A176: 1.3054 | B176: 31.0972827
A177: 1.3115 | B177: 31.460286
A178: 1.3176 | B178: 31.76278875
A179: 1.3237 | B179: 31.9442904
A180: 1.3237 | B180: 32.00479095
A181: 1.3298 | B181: 32.24679315
A182: 1.3359 | B182: 32.5492959
A183: 1.342 | B183: 32.48879535
A184: 1.3481 | B184: 32.9122992
A185: 1.3542 | B185: 33.09380085
A186: 1.3603 | B186: 33.1543014
A187: 1.3664 | B187: 33.33580305
A188: 1.3725 | B188: 33.57780525
A189: 1.3786 | B189: 33.7593069
A190: 1.3847 | B190: 33.880308
A191: 1.3908 | B191: 34.06180965
A192: 1.3969 | B192: 34.06180965
A193: 1.403 | B193: 34.06180965
A194: 1.4213 | B194: 34.3643124
A195: 1.4274 | B195: 34.54581405
A196: 1.4274 | B196: 34.78781625
A197: 1.4335 | B197: 34.90881735
A198: 1.4396 | B198: 34.9693179
A199: 1.4457 | B199: 35.3323212
A200: 1.4518 | B200: 35.3323212
... 3757 more rows

Sheet simul_Type2_4Bls
A1: Les cellule blanches sont modifiables - Les cellules vertes donnent accés à des listes de choix - Un triangle rouge supérieur droit indique un commentaire (glissez sur la cellule) | BB1: Parmètres de la simulation graphique (séries de fonctions)
A2: coeff partiel gM0 | B2: 1 | H2: (KN) | AZ2: contour | BA2: 0 | BB2: 0 | BC2: =IF(nbbls>=1,longzoneatt-elongit1+5,"") -> 153.2 | BD2: =IF(nbbls>=1,IF(nbrangees>=1,etransv2+ecart2,""),"") -> 65.2 | BE2: axe1
A3: coeff partiel gM2 | B3: 1.25 | D3: coeff x d0 | E3: coeff | G3: NEd | H3: 53 | AZ3: contour | BA3: 0 | BB3: =largeurplat -> 99.2 | BC3: =IF(nbbls>=1,longzoneatt-elongit1-5,"") -> 143.2 | BD3: =IF(nbbls>=1,IF(nbrangees>=1,etransv2+ecart2,""),"") -> 65.2 | BE3: axe1
A4: boulons par rangée | B4: 2 | C4: e1 (mm) | D4: 20 | E4: 1.538461538 | G4: Cisaillement de bloc NEd/Veff < 100% - Anv = 236mm² ; Ant = 73mm² | AZ4: contour | BA4: =largeurplat+2*elongit1+pasbl1*(nbbls-1) -> 168.2 | BB4: =largeurplat -> 99.2 | BC4: =IF(nbbls>=1,longzoneatt-elongit1,"") -> 148.2 | BD4: =IF(nbbls>=1,IF(nbrangees>=1,etransv2+ecart2+5,""),"") -> 70.2 | BE4: axe2
A5: nombre de rangées | B5: 2 | C5: e2 (mm) | D5: 34 | E5: 2.615384615 | G5: V eff,1,Rd centré | H5: 52.98624593 | I5: 1.000259578 | AZ5: contour | BA5: =longzoneatt -> 168.2 | BB5: 0 | BC5: =IF(nbbls>=1,longzoneatt-elongit1,"") -> 148.2 | BD5: =IF(nbbls>=1,IF(nbrangees>=1,etransv2 + ecart2-5,""),"") -> 60.2 | BE5: axe2
A6: f boulons (d en mm) | B6: 12 | C6: p1 (mm) | D6: 29 | E6: 2.230769231 | G6: V eff,2,Rd excentré | H6: 42.50304593 | I6: 1.246969455 | AZ6: contour | BA6: 0 | BB6: 0 | BC6: =IF(nbbls>=1,IF(nbrangees>=2,longzoneatt-elongit1+5,""),"") -> 153.2 | BD6: =IF(nbbls>=1,IF(nbrangees>=2,etransv2,""),"") -> 34 | BE6: axe3
A7: f perçages (d0 en mm) | B7: 13 | C7: p2 (mm) | D7: 31.2 | E7: 2.4 | G7: Résistance du plat en section nette NEd / Nt,Rd < 100% | BC7: =IF(nbbls>=1,IF(nbrangees>=2,longzoneatt-elongit1-5,""),"") -> 143.2 | BD7: =IF(nbbls>=1,IF(nbrangees>=2,etransv2,""),"") -> 34 | BE7: axe3
A8: Section filetée (mm²) | B8: 84.3 | C8: ep. plat (mm) | D8: 4 | G8: Abrute= 397mm² ; Anet = 293mm² ; Nurd = 75,9 KN ; Nplrd = 93,2 KN | BC8: =IF(nbbls>=1,IF(nbrangees>=2,longzoneatt-elongit1,""),"") -> 148.2 | BD8: =IF(nbbls>=1,IF(nbrangees>=2,etransv2+5,""),"") -> 39 | BE8: axe4
A9: Classe des boulons | B9: 6.8 | C9: Plan de joint | D9: 1 | E9: Simple cisaillement | G9: Nt,Rd = Min.( Nu,Rd ; Npl,Rd) | H9: 75.89376 | I9: 0.6983446333 | BC9: =IF(nbbls>=1,IF(nbrangees>=2,longzoneatt-elongit1,""),"") -> 148.2 | BD9: =IF(nbbls>=1,IF(nbrangees>=2,etransv2 -5,""),"") -> 29 | BE9: axe4
A10: fub ou Rm | B10: 600 | C10: Acier | D10: Mpa | E10: ep < 40mm | G10: Cisaillement des boulons NEd par plan de joint / Fv,Rd < 100% | M10: Largeur du plat (mm) | N10: 99.2 | BC10: =IF(nbbls>=2,IF(nbrangees>=2,longzoneatt-elongit1-pasbl1+5,""),"") -> 124.2 | BD10: =IF(nbbls>=2,IF(nbrangees>=2,etransv2,""),"") -> 34 | BE10: axe5
C11: fy | D11: 235 | E11: S355K2+N | G11: Fv,Rd = av fub A / gM2 | H11: 80.928 | I11: 0.6549031238 | M11: Longueur du plat (mm) | N11: 267.4 | BC11: =IF(nbbls>=2,IF(nbrangees>=2,longzoneatt-elongit1-pasbl1-5,""),"") -> 114.2 | BD11: =IF(nbbls>=2,IF(nbrangees>=2,etransv2,""),"") -> 34 | BE11: axe5
C12: fu | D12: 360 | E12: Galvanisation NON conseillée | G12: Pression diamétrale: NEd par boulon / Fb,Rd < 100% | I12: Boulons de rive | M12: Longueur libre du plat L0 (mm) | N12: 123.9 | BC12: =IF(nbbls>=2,IF(nbrangees>=2,longzoneatt-elongit1-pasbl1,""),"") -> 119.2 | BD12: =IF(nbbls>=2,IF(nbrangees>=2,etransv2+5,""),"") -> 39 | BE12: axe6
G13: Fb,Rd = k1 ab fu dt / gM2 | H13: 70.89230769 | I13: 0.7476128472 | M13: Alongement jusqu'à NEd/Abrute = fy (mm) | N13: 0.13865 | BC13: =IF(nbbls>=2,IF(nbrangees>=2,longzoneatt-elongit1-pasbl1,""),"") -> 119.2 | BD13: =IF(nbbls>=2,IF(nbrangees>=2,etransv2-5,""),"") -> 29 | BE13: axe6
G14: av = 0,5 ; k1 = 2,5 ; ab = 0,51 ; ad = 0,51 | M14: NEd (KN) pour fy | N14: 93.248 | BC14: =IF(nbbls>=2,IF(nbrangees>=1,longzoneatt-elongit1-pasbl1,""),"") -> 119.2 | BD14: =IF(nbbls>=2,IF(nbrangees>=1,etransv2 + ecart2+5,""),"") -> 70.2 | BE14: axe7
BC15: =IF(nbbls>=2,IF(nbrangees>=1,longzoneatt-elongit1-pasbl1,""),"") -> 119.2 | BD15: =IF(nbbls>=2,IF(nbrangees>=1,etransv2 + ecart2-5,""),"") -> 60.2 | BE15: axe7
BC16: =IF(nbbls>=2,IF(nbrangees>=1,longzoneatt-elongit1-pasbl1+5,""),"") -> 124.2 | BD16: =IF(nbbls>=2,IF(nbrangees>=1,etransv2+ecart2,""),"") -> 65.2 | BE16: axe8
BC17: =IF(nbbls>=2,IF(nbrangees>=1,longzoneatt-elongit1-pasbl1-5,""),"") -> 114.2 | BD17: =IF(nbbls>=2,IF(nbrangees>=1,etransv2 + ecart2,""),"") -> 65.2 | BE17: axe8
BC18: =IF(nbbls>=3,IF(nbrangees>=1,longzoneatt-elongit1-2*pasbl1,""),"") ->  | BD18: =IF(nbbls>=3,IF(nbrangees>=1,etransv2+ecart2+5,""),"") ->  | BE18: axe9
BC19: =IF(nbbls>=3,IF(nbrangees>=1,longzoneatt-elongit1-2*pasbl1,""),"") ->  | BD19: =IF(nbbls>=3,IF(nbrangees>=1,etransv2 + ecart2-5,""),"") ->  | BE19: axe9
BC20: =IF(nbbls>=3,IF(nbrangees>=1,longzoneatt-elongit1-2*pasbl1+5,""),"") ->  | BD20: =IF(nbbls>=3,IF(nbrangees>=1,etransv2+ecart2,""),"") ->  | BE20: axe10
BC21: =IF(nbbls>=3,IF(nbrangees>=1,longzoneatt-elongit1-2*pasbl1-5,""),"") ->  | BD21: =IF(nbbls>=3,IF(nbrangees>=1,etransv2 + ecart2,""),"") ->  | BE21: axe10
BC22: =IF(nbbls>=3,IF(nbrangees>=2,longzoneatt-elongit1-2*pasbl1+5,""),"") ->  | BD22: =IF(nbbls>=3,IF(nbrangees>=2,etransv2,""),"") ->  | BE22: axe11
BC23: =IF(nbbls>=3,IF(nbrangees>=2,longzoneatt-elongit1-2*pasbl1-5,""),"") ->  | BD23: =IF(nbbls>=3,IF(nbrangees>=2,etransv2,""),"") ->  | BE23: axe11
BC24: =IF(nbbls>=3,IF(nbrangees>=2,longzoneatt-elongit1-2*pasbl1,""),"") ->  | BD24: =IF(nbbls>=3,IF(nbrangees>=2,etransv2+5,""),"") ->  | BE24: axe12
BC25: =IF(nbbls>=3,IF(nbrangees>=2,longzoneatt-elongit1-2*pasbl1,""),"") ->  | BD25: =IF(nbbls>=3,IF(nbrangees>=2,etransv2-5,""),"") ->  | BE25: axe12

Sheet Essai_Type2_4Bls
A1: Déplacement (mm) | B1: Force (kN)
A2: 0 | B2: 5.02154565
A3: -0.1769 | B3: 5.6870517
A4: -0.1342 | B4: 5.98955445
A5: -0.122 | B5: 6.11055555
A6: -0.1159 | B6: 6.47355885
A7: -0.1098 | B7: 6.59455995
A8: -0.1098 | B8: 6.8970627
A9: -0.1037 | B9: 6.95756325
A10: -0.1037 | B10: 7.32056655
A11: -0.0976 | B11: 7.260066
A12: -0.0915 | B12: 7.7440704
A13: -0.0854 | B13: 7.9860726
A14: -0.0793 | B14: 8.16757425
A15: -0.0793 | B15: 8.470077
A16: -0.0732 | B16: 8.8330803
A17: -0.0671 | B17: 9.01458195
A18: -0.061 | B18: 9.25658415
A19: -0.0488 | B19: 9.37758525
A20: -0.0427 | B20: 9.13558305
A21: -0.0122 | B21: 9.3170847
A22: -0.0122 | B22: 9.680088
A23: -0.0122 | B23: 9.680088
A24: 0.0061 | B24: 9.98259075
A25: 0.0183 | B25: 10.2850935
A26: 0.0305 | B26: 9.98259075
A27: 0.0488 | B27: 10.2850935
A28: 0.0549 | B28: 10.5270957
A29: 0.0671 | B29: 10.58759625
A30: 0.0793 | B30: 10.82959845
A31: 0.0854 | B31: 10.82959845
A32: 0.0976 | B32: 11.07160065
A33: 0.1098 | B33: 11.1321012
A34: 0.122 | B34: 11.4951045
A35: 0.1342 | B35: 11.3741034
A36: 0.1464 | B36: 11.1321012
A37: 0.1708 | B37: 11.55560505
A38: 0.1769 | B38: 11.7371067
A39: 0.1891 | B39: 11.9791089
A40: 0.2074 | B40: 12.10011
A41: 0.2196 | B41: 12.28161165
A42: 0.2318 | B42: 12.2211111
A43: 0.244 | B43: 12.52361385
A44: 0.2501 | B44: 12.52361385
A45: 0.2684 | B45: 12.52361385
A46: 0.2806 | B46: 12.7051155
A47: 0.2928 | B47: 13.00761825
A48: 0.305 | B48: 13.00761825
A49: 0.3172 | B49: 13.12861935
A50: 0.3294 | B50: 13.24962045
A51: 0.3477 | B51: 13.49162265
A52: 0.3599 | B52: 13.61262375
A53: 0.3721 | B53: 13.85462595
A54: 0.3843 | B54: 13.85462595
A55: 0.3965 | B55: 14.1571287
A56: 0.4087 | B56: 14.1571287
A57: 0.4209 | B57: 13.73362485
A58: 0.4514 | B58: 14.0361276
A59: 0.4636 | B59: 14.3991309
A60: 0.4697 | B60: 14.58063255
A61: 0.4819 | B61: 14.58063255
A62: 0.4941 | B62: 14.70163365
A63: 0.5063 | B63: 14.94363585
A64: 0.5124 | B64: 15.18563805
A65: 0.5246 | B65: 15.42764025
A66: 0.5368 | B66: 15.3671397
A67: 0.549 | B67: 15.54864135
A68: 0.5612 | B68: 15.730143
A69: 0.5734 | B69: 15.4881408
A70: 0.61 | B70: 15.730143
A71: 0.6161 | B71: 16.03264575
A72: 0.6222 | B72: 16.0931463
A73: 0.6283 | B73: 16.39564905
A74: 0.6405 | B74: 16.39564905
A75: 0.6527 | B75: 16.39564905
A76: 0.6649 | B76: 16.6981518
A77: 0.6771 | B77: 17.00065455
A78: 0.6893 | B78: 17.00065455
A79: 0.7015 | B79: 17.1821562
A80: 0.7076 | B80: 17.1821562
A81: 0.7198 | B81: 17.12165565
A82: 0.732 | B82: 17.60566005
A83: 0.7442 | B83: 17.7871617
A84: 0.7503 | B84: 17.9081628
A85: 0.7625 | B85: 18.08966445
A86: 0.7747 | B86: 18.150165
A87: 0.7869 | B87: 18.2711661
A88: 0.7991 | B88: 17.84766225
A89: 0.8296 | B89: 18.2711661
A90: 0.8418 | B90: 18.6341694
A91: 0.8479 | B91: 18.69466995
A92: 0.8601 | B92: 18.93667215
A93: 0.8662 | B93: 18.93667215
A94: 0.8784 | B94: 19.42067655
A95: 0.8906 | B95: 19.360176
A96: 0.8967 | B96: 19.42067655
A97: 0.9089 | B97: 19.7231793
A98: 0.9211 | B98: 19.90468095
A99: 0.9272 | B99: 19.90468095
A100: 0.9394 | B100: 20.0861826
A101: 0.9516 | B101: 20.2071837
A102: 0.9638 | B102: 20.4491859
A103: 0.9699 | B103: 20.50968645
A104: 0.9821 | B104: 20.87268975
A105: 0.9943 | B105: 20.99369085
A106: 1.0004 | B106: 21.0541914
A107: 1.0126 | B107: 20.570187
A108: 1.0492 | B108: 20.99369085
A109: 1.0553 | B109: 21.2961936
A110: 1.0614 | B110: 21.5381958
A111: 1.0736 | B111: 21.5381958
A112: 1.0797 | B112: 21.84069855
A113: 1.0919 | B113: 22.0222002
A114: 1.098 | B114: 22.1432013
A115: 1.1102 | B115: 22.32470295
A116: 1.1163 | B116: 22.3852035
A117: 1.1285 | B117: 22.56670515
A118: 1.1346 | B118: 22.80870735
A119: 1.1468 | B119: 22.92970845
A120: 1.159 | B120: 23.05070955
A121: 1.1651 | B121: 23.17171065
A122: 1.1773 | B122: 23.3532123
A123: 1.1895 | B123: 23.53471395
A124: 1.1956 | B124: 23.7162156
A125: 1.2078 | B125: 23.8372167
A126: 1.2139 | B126: 23.9582178
A127: 1.2261 | B127: 23.5952145
A128: 1.2627 | B128: 23.9582178
A129: 1.2688 | B129: 23.9582178
A130: 1.2749 | B130: 24.0792189
A131: 1.281 | B131: 24.5632233
A132: 1.2871 | B132: 24.74472495
A133: 1.2993 | B133: 24.8052255
A134: 1.3115 | B134: 25.0472277
A135: 1.3176 | B135: 25.1682288
A136: 1.3298 | B136: 25.34973045
A137: 1.3359 | B137: 25.34973045
A138: 1.342 | B138: 25.59173265
A139: 1.3542 | B139: 25.8942354
A140: 1.3603 | B140: 25.95473595
A141: 1.3725 | B141: 25.83373485
A142: 1.3847 | B142: 26.19673815
A143: 1.3908 | B143: 26.2572387
A144: 1.403 | B144: 26.31773925
A145: 1.4091 | B145: 26.620242
A146: 1.4213 | B146: 26.8622442
A147: 1.4274 | B147: 27.1042464
A148: 1.4396 | B148: 27.16474695
A149: 1.4457 | B149: 26.80174365
A150: 1.4884 | B150: 27.04374585
A151: 1.4884 | B151: 26.9832453
A152: 1.5006 | B152: 27.4672497
A153: 1.5067 | B153: 27.64875135
A154: 1.5128 | B154: 27.7092519
A155: 1.5189 | B155: 27.9512541
A156: 1.525 | B156: 28.1932563
A157: 1.5372 | B157: 28.4352585
A158: 1.5433 | B158: 28.61676015
A159: 1.5555 | B159: 28.73776125
A160: 1.5616 | B160: 28.97976345
A161: 1.5738 | B161: 29.10076455
A162: 1.5799 | B162: 29.22176565
A163: 1.586 | B163: 29.2822662
A164: 1.5982 | B164: 29.6452695
A165: 1.6043 | B165: 29.46376785
A166: 1.6165 | B166: 29.6452695
A167: 1.6287 | B167: 29.7662706
A168: 1.6348 | B168: 30.06877335
A169: 1.6409 | B169: 30.31077555
A170: 1.6531 | B170: 30.18977445
A171: 1.6592 | B171: 30.6132783
A172: 1.6653 | B172: 30.67377885
A173: 1.6775 | B173: 30.91578105
A174: 1.6836 | B174: 30.43177665
A175: 1.7202 | B175: 30.67377885
A176: 1.7263 | B176: 30.91578105
A177: 1.7324 | B177: 31.15778325
A178: 1.7385 | B178: 31.460286
A179: 1.7446 | B179: 31.5812871
A180: 1.7507 | B180: 31.7022882
A181: 1.7568 | B181: 31.9442904
A182: 1.769 | B182: 31.88378985
A183: 1.7751 | B183: 32.1862926
A184: 1.7812 | B184: 32.36779425
A185: 1.7934 | B185: 32.4282948
A186: 1.7995 | B186: 32.670297
A187: 1.8056 | B187: 32.73079755
A188: 1.8178 | B188: 33.09380085
A189: 1.8239 | B189: 33.09380085
A190: 1.83 | B190: 33.33580305
A191: 1.8422 | B191: 33.57780525
A192: 1.8483 | B192: 33.33580305
A193: 1.8605 | B193: 33.6383058
A194: 1.8666 | B194: 33.7593069
A195: 1.8727 | B195: 34.0013091
A196: 1.8788 | B196: 34.18281075
A197: 1.891 | B197: 34.3643124
A198: 1.8971 | B198: 34.42481295
A199: 1.9032 | B199: 34.54581405
A200: 1.9154 | B200: 34.66681515
... 2776 more rows

Sheet raideur_K2
A1: Déplacement (mm) | B1: Force (kN)
A2: 0 | B2: 5.02154565
A3: -0.1769 | B3: 5.6870517
A4: -0.1342 | B4: 5.98955445
A5: -0.122 | B5: 6.11055555
A6: -0.1159 | B6: 6.47355885
A7: -0.1098 | B7: 6.59455995
A8: -0.1098 | B8: 6.8970627
A9: -0.1037 | B9: 6.95756325
A10: -0.1037 | B10: 7.32056655
A11: -0.0976 | B11: 7.260066
A12: -0.0915 | B12: 7.7440704
A13: -0.0854 | B13: 7.9860726
A14: -0.0793 | B14: 8.16757425
A15: -0.0793 | B15: 8.470077
A16: -0.0732 | B16: 8.8330803
A17: -0.0671 | B17: 9.01458195
A18: -0.061 | B18: 9.25658415
A19: -0.0488 | B19: 9.37758525
A20: -0.0427 | B20: 9.13558305
A21: -0.0122 | B21: 9.3170847
A22: -0.0122 | B22: 9.680088
A23: -0.0122 | B23: 9.680088
A24: 0.0061 | B24: 9.98259075
A25: 0.0183 | B25: 10.2850935
A26: 0.0305 | B26: 9.98259075
A27: 0.0488 | B27: 10.2850935
A28: 0.0549 | B28: 10.5270957
A29: 0.0671 | B29: 10.58759625
A30: 0.0793 | B30: 10.82959845
A31: 0.0854 | B31: 10.82959845
A32: 0.0976 | B32: 11.07160065
A33: 0.1098 | B33: 11.1321012
A34: 0.122 | B34: 11.4951045
A35: 0.1342 | B35: 11.3741034
A36: 0.1464 | B36: 11.1321012
A37: 0.1708 | B37: 11.55560505
A38: 0.1769 | B38: 11.7371067
A39: 0.1891 | B39: 11.9791089
A40: 0.2074 | B40: 12.10011
A41: 0.2196 | B41: 12.28161165
A42: 0.2318 | B42: 12.2211111
A43: 0.244 | B43: 12.52361385
A44: 0.2501 | B44: 12.52361385
A45: 0.2684 | B45: 12.52361385
A46: 0.2806 | B46: 12.7051155
A47: 0.2928 | B47: 13.00761825
A48: 0.305 | B48: 13.00761825
A49: 0.3172 | B49: 13.12861935
A50: 0.3294 | B50: 13.24962045
A51: 0.3477 | B51: 13.49162265
A52: 0.3599 | B52: 13.61262375
A53: 0.3721 | B53: 13.85462595
A54: 0.3843 | B54: 13.85462595
A55: 0.3965 | B55: 14.1571287
A56: 0.4087 | B56: 14.1571287
A57: 0.4209 | B57: 13.73362485
A58: 0.4514 | B58: 14.0361276
A59: 0.4636 | B59: 14.3991309
A60: 0.4697 | B60: 14.58063255
A61: 0.4819 | B61: 14.58063255
A62: 0.4941 | B62: 14.70163365
A63: 0.5063 | B63: 14.94363585
A64: 0.5124 | B64: 15.18563805
A65: 0.5246 | B65: 15.42764025
A66: 0.5368 | B66: 15.3671397
A67: 0.549 | B67: 15.54864135
A68: 0.5612 | B68: 15.730143
A69: 0.5734 | B69: 15.4881408
A70: 0.61 | B70: 15.730143
A71: 0.6161 | B71: 16.03264575
A72: 0.6222 | B72: 16.0931463
A73: 0.6283 | B73: 16.39564905
A74: 0.6405 | B74: 16.39564905
A75: 0.6527 | B75: 16.39564905
A76: 0.6649 | B76: 16.6981518
A77: 0.6771 | B77: 17.00065455
A78: 0.6893 | B78: 17.00065455
A79: 0.7015 | B79: 17.1821562
A80: 0.7076 | B80: 17.1821562
A81: 0.7198 | B81: 17.12165565
A82: 0.732 | B82: 17.60566005
A83: 0.7442 | B83: 17.7871617
A84: 0.7503 | B84: 17.9081628
A85: 0.7625 | B85: 18.08966445
A86: 0.7747 | B86: 18.150165
A87: 0.7869 | B87: 18.2711661
A88: 0.7991 | B88: 17.84766225
A89: 0.8296 | B89: 18.2711661
A90: 0.8418 | B90: 18.6341694
A91: 0.8479 | B91: 18.69466995
A92: 0.8601 | B92: 18.93667215
A93: 0.8662 | B93: 18.93667215
A94: 0.8784 | B94: 19.42067655
A95: 0.8906 | B95: 19.360176
A96: 0.8967 | B96: 19.42067655
A97: 0.9089 | B97: 19.7231793
A98: 0.9211 | B98: 19.90468095
A99: 0.9272 | B99: 19.90468095
A100: 0.9394 | B100: 20.0861826
A101: 0.9516 | B101: 20.2071837
A102: 0.9638 | B102: 20.4491859
A103: 0.9699 | B103: 20.50968645
A104: 0.9821 | B104: 20.87268975
A105: 0.9943 | B105: 20.99369085
A106: 1.0004 | B106: 21.0541914
A107: 1.0126 | B107: 20.570187
A108: 1.0492 | B108: 20.99369085
A109: 1.0553 | B109: 21.2961936
A110: 1.0614 | B110: 21.5381958
A111: 1.0736 | B111: 21.5381958
A112: 1.0797 | B112: 21.84069855
A113: 1.0919 | B113: 22.0222002
A114: 1.098 | B114: 22.1432013
A115: 1.1102 | B115: 22.32470295
A116: 1.1163 | B116: 22.3852035
A117: 1.1285 | B117: 22.56670515
A118: 1.1346 | B118: 22.80870735
A119: 1.1468 | B119: 22.92970845
A120: 1.159 | B120: 23.05070955
A121: 1.1651 | B121: 23.17171065
A122: 1.1773 | B122: 23.3532123
A123: 1.1895 | B123: 23.53471395
A124: 1.1956 | B124: 23.7162156
A125: 1.2078 | B125: 23.8372167
A126: 1.2139 | B126: 23.9582178
A127: 1.2261 | B127: 23.5952145
A128: 1.2627 | B128: 23.9582178
A129: 1.2688 | B129: 23.9582178
A130: 1.2749 | B130: 24.0792189
A131: 1.281 | B131: 24.5632233
A132: 1.2871 | B132: 24.74472495
A133: 1.2993 | B133: 24.8052255
A134: 1.3115 | B134: 25.0472277
A135: 1.3176 | B135: 25.1682288
A136: 1.3298 | B136: 25.34973045
A137: 1.3359 | B137: 25.34973045
A138: 1.342 | B138: 25.59173265
A139: 1.3542 | B139: 25.8942354
A140: 1.3603 | B140: 25.95473595
A141: 1.3725 | B141: 25.83373485
A142: 1.3847 | B142: 26.19673815
A143: 1.3908 | B143: 26.2572387
A144: 1.403 | B144: 26.31773925
A145: 1.4091 | B145: 26.620242
A146: 1.4213 | B146: 26.8622442
A147: 1.4274 | B147: 27.1042464
A148: 1.4396 | B148: 27.16474695
A149: 1.4457 | B149: 26.80174365
A150: 1.4884 | B150: 27.04374585
A151: 1.4884 | B151: 26.9832453
A152: 1.5006 | B152: 27.4672497
A153: 1.5067 | B153: 27.64875135
A154: 1.5128 | B154: 27.7092519
A155: 1.5189 | B155: 27.9512541
A156: 1.525 | B156: 28.1932563
A157: 1.5372 | B157: 28.4352585
A158: 1.5433 | B158: 28.61676015
A159: 1.5555 | B159: 28.73776125
A160: 1.5616 | B160: 28.97976345
A161: 1.5738 | B161: 29.10076455
A162: 1.5799 | B162: 29.22176565
A163: 1.586 | B163: 29.2822662
A164: 1.5982 | B164: 29.6452695
A165: 1.6043 | B165: 29.46376785
A166: 1.6165 | B166: 29.6452695
A167: 1.6287 | B167: 29.7662706
A168: 1.6348 | B168: 30.06877335
A169: 1.6409 | B169: 30.31077555
A170: 1.6531 | B170: 30.18977445
A171: 1.6592 | B171: 30.6132783
A172: 1.6653 | B172: 30.67377885
A173: 1.6775 | B173: 30.91578105
A174: 1.6836 | B174: 30.43177665
A175: 1.7202 | B175: 30.67377885
A176: 1.7263 | B176: 30.91578105
A177: 1.7324 | B177: 31.15778325
A178: 1.7385 | B178: 31.460286
A179: 1.7446 | B179: 31.5812871
A180: 1.7507 | B180: 31.7022882
A181: 1.7568 | B181: 31.9442904
A182: 1.769 | B182: 31.88378985
A183: 1.7751 | B183: 32.1862926
A184: 1.7812 | B184: 32.36779425
A185: 1.7934 | B185: 32.4282948
A186: 1.7995 | B186: 32.670297
A187: 1.8056 | B187: 32.73079755
A188: 1.8178 | B188: 33.09380085
A189: 1.8239 | B189: 33.09380085
A190: 1.83 | B190: 33.33580305
A191: 1.8422 | B191: 33.57780525
A192: 1.8483 | B192: 33.33580305
A193: 1.8605 | B193: 33.6383058
A194: 1.8666 | B194: 33.7593069
A195: 1.8727 | B195: 34.0013091
A196: 1.8788 | B196: 34.18281075
A197: 1.891 | B197: 34.3643124
A198: 1.8971 | B198: 34.42481295
A199: 1.9032 | B199: 34.54581405
A200: 1.9154 | B200: 34.66681515
... 2776 more rows

Sheet Données
C1: perçage d0 | D1: Section filetée | E1: Section | F1: HR dext rondelle | G1: fdouille K | H1: pas normal | I1: Hauteur tête de vis | J1: Hauteur écrou | K1: Moyenne surangle surplat | P1: x= qualité 6.8 ou 8.8 | T1: Longueurs sous tête données GFD gamme SB | AK1: ep tôle | AL1: plc | AM1: Boulons de rive | AN1: Section filetée (mm²)
A2: Boulons | B2: d | D2: As | E2: A | K2: dm | L2: fy Mpa | M2: fu Mpa | N2: Qualité | O2: fyb | P2: fub | Q2: diam. | R2: 25 | S2: 30 | T2: 35 | U2: 40 | V2: 45 | W2: 50 | X2: 55 | Y2: 60 | Z2: 65 | AA2: 70 | AB2: 80 | AC2: 90 | AD2: 100 | AE2: 110 | AF2: 120 | AG2: 130 | AH2: 140 | AI2: 150 | AJ2: 160 | AK2: 1.5 | AL2: 1 | AM2: Boulons intérieurs | AN2: Section non filetée (mm²)
A3: 10 | B3: 10 | C3: 11 | D3: 58 | E3: 78.5 | H3: 1.5 | I3: 6.4 | J3: 8.4 | K3: 17.24 | L3: S235JR | M3: 360 | N3: 4.6 | O3: 240 | P3: 400 | Q3: 10 | AK3: 2 | AL3: 2
A4: 12 | B4: 12 | C4: 13 | D4: 84.3 | E4: 113.1 | F4: 24 | G4: 25.5 | H4: 1.75 | I4: 7.5 | J4: 10.8 | K4: 19.39 | L4: S235J0 | M4: 430 | N4: 4.8 | O4: 320 | P4: 400 | Q4: 12 | R4: x | S4: x | T4: x | U4: x | V4: x | W4: x | X4: x | Y4: x | AA4: x | AB4: x | AC4: 8.8 | AD4: 8.8 | AE4: 8.8 | AF4: 8.8 | AK4: 2.5
A5: 14 | B5: 14 | C5: 15 | D5: 115 | E5: 154 | F5: 28 | G5: 32 | H5: 2 | I5: 8.8 | J5: 12.8 | K5: 22.63 | L5: S235J2 | M5: 510 | N5: 5.6 | O5: 300 | P5: 500 | Q5: 14 | S5: x | T5: x | U5: x | V5: x | W5: x | Y5: x | AA5: x | AC5: 8.8 | AD5: 8.8 | AF5: 8.8 | AK5: 3
A6: 16 | B6: 16 | C6: 18 | D6: 157 | E6: 201 | F6: 30 | G6: 35.8 | H6: 2 | I6: 10 | J6: 14.8 | K6: 25.86 | L6: S235J2+N | M6: 540 | N6: 5.8 | O6: 400 | P6: 500 | Q6: 16 | S6: x | T6: x | U6: x | V6: x | W6: x | X6: x | Y6: x | Z6: x | AA6: x | AB6: x | AC6: x | AD6: 8.8 | AE6: 8.8 | AF6: 8.8 | AG6: 8.8 | AH6: 8.8 | AI6: 8.8 | AJ6: 8.8 | AK6: 4
A7: 18 | B7: 18 | C7: 20 | D7: 192 | E7: 254 | F7: 34 | G7: 39.6 | H7: 2.5 | I7: 11.5 | J7: 15.8 | K7: 29.09 | L7: S275JR | M7: 570 | N7: 6.6 | O7: 360 | P7: 600 | Q7: 18 | U7: x | V7: x | W7: x | Y7: x | AA7: x | AB7: x | AC7: 8.8 | AD7: 8.8 | AK7: 5
A8: 20 | B8: 20 | C8: 22 | D8: 245 | E8: 314 | F8: 37 | G8: 43.3 | H8: 2.5 | I8: 12.5 | J8: 18 | K8: 32.32 | L8: S275J0 | N8: 6.8 | O8: 480 | P8: 600 | Q8: 20 | T8: x | U8: x | V8: x | W8: x | X8: x | Y8: x | Z8: x | AA8: x | AB8: x | AC8: x | AD8: x | AE8: 8.8 | AF8: 8.8 | AG8: 8.8 | AH8: 8.8 | AI8: 8.8 | AJ8: 8.8 | AK8: 6
A9: 22 | B9: 22 | C9: 24 | D9: 303 | E9: 380 | F9: 39 | G9: 45.8 | H9: 2.5 | I9: 14 | J9: 19.4 | K9: 36.63 | L9: S275J2 | N9: 8.8 | O9: 640 | P9: 800 | Q9: 22 | AB9: 8.8 | AD9: 8.8 | AF9: 8.8 | AK9: 8
A10: 24 | B10: 24 | C10: 26 | D10: 353 | E10: 452 | F10: 44 | G10: 50.8 | H10: 3 | I10: 15 | J10: 21.5 | K10: 38.79 | L10: S355JR | N10: 10.9 | O10: 900 | P10: 1000 | Q10: 24 | W10: 8.8 | Y10: 8.8 | AA10: 8.8 | AB10: 8.8 | AC10: 8.8 | AD10: 8.8 | AE10: 8.8 | AF10: 8.8 | AG10: 8.8 | AH10: 8.8 | AK10: 10
A11: 27 | B11: 27 | C11: 30 | D11: 459 | E11: 573 | F11: 50 | G11: 57.1 | H11: 3 | I11: 17 | J11: 23.8 | K11: 44.17 | L11: S355J0 | Q11: 27 | AK11: 12
A12: 30 | B12: 30 | C12: 33 | D12: 561 | E12: 707 | F12: 56 | G12: 63.3 | H12: 3.5 | I12: 18.7 | J12: 25.6 | K12: 49.56 | L12: S355J2 | Q12: 30 | AK12: 15
L13: S355K2 | AK13: 20
A15: Pinces et pas | N15: S
A16: 1.2
A17: 1.5 | N17: 18
A18: 2.2 | N18: 21
A19: 2.5 | N19: 24
A20: Porteur | N20: 27
A21: Porté | N21: 30
A22: Classes | N22: 34
A23: 1 | N23: 36
A24: 2
A25: 3
A26: 4

Sheet EC3
